[Event "XX Gran Hotel Bali-A 2023"]
[Site "Benidorm"]
[Date "2023.12.05"]
[Round "6.17"]
[White "Gaurav Rajesh Zagade"]
[Black "Alvarez Perez, Adan"]
[Result "1/2-1/2"]
[ECO "D35"]
[WhiteElo "2099"]
[BlackElo "2241"]
[Annotator "RC"]
[PlyCount "171"]
[EventDate "2023.12.02"]
[EventType "swiss"]
[EventCountry "ESP"]
[SourceTitle "playchess.com"]
[Source "ChessBase"]
[SourceQuality "1"]
[TimeControl "5400+30"]

1. d4 {[%emt 0:00:03]} Nf6 {[%emt 0:00:37]} 2. c4 {[%emt 0:00:10]} e6 {[%emt 0:01:39]} 3. Nc3 {[%emt 0:00:25]} d5 {[%emt 0:00:34]} 4. cxd5 {[%emt 0:00:24]} exd5 {[%emt 0:00:12]} 5. Bg5 {[%emt 0:00:14]} c6 {[%emt 0:03:14]} 6. e3 {[%emt 0:00:31]} h6 {[%emt 0:04:45]} 7. Bh4 {[%emt 0:00:35]} Qb6 {[%emt 0:03:59]} 8. Bxf6 {[%emt 0:22:01]} Qxb2 {[%emt 0:01:50]} 9. Qc1 {[%emt 0:05:44]} Ba3 {[%emt 0:19:52]} 10. Bxg7 {[%emt 0:14:25]} Rh7 {[%emt 0:00:02]} 11. Nxd5 {[%emt 0:02:39]} Qxc1+ {[%emt 0:19:44]} 12. Rxc1 {[%emt 0:00:08]} Rxg7 {[%emt 0:00:07]} 13. Rc3 {[%emt 0:00:52]} Bd6 {[%emt 0:00:02]} 14. a3 {[%emt 0:01:46]} Bxa3 {[%emt 0:03:49]} 15. Nc7+ {[%emt 0:04:02]} Kd8 {[%emt 0:00:38]} 16. Nxa8 {[%emt 0:00:29]} Bb4 {[%emt 0:00:02]} 17. Kd2 {[%emt 0:01:09]} b5 {[%emt 0:00:22]} 18. g3 {[%emt 0:03:36]} Bb7 {[%emt 0:03:38]} 19. Bg2 {[%emt 0:00:35]} Bxc3+ {[%emt 0:04:38]} 20. Kxc3 {[%emt 0:00:06]} Bxa8 {[%emt 0:00:36]} 21. Ne2 {[%emt 0:03:00]} Kc7 {[%emt 0:01:47]} 22. Nf4 {[%emt 0:03:13]} Kb6 {[%emt 0:01:25]} 23. Kb3 {[%emt 0:01:49]} Bb7 {[%emt 0:02:10]} 24. Rc1 {[%emt 0:00:47]} Bc8 {[%emt 0:04:11]} 25. h4 {[%emt 0:03:18]} a5 {[%emt 0:01:09]} 26. Rc5 {[%emt 0:01:01]} Bg4 {[%emt 0:03:49]} 27. Nd3 {[%emt 0:04:41]} f6 {[%emt 0:02:49]} 28. Nf4 {[%emt 0:01:11]} Bd1+ {[%emt 0:00:42]} 29. Kb2 {[%emt 0:00:14]} b4 {[%emt 0:03:30]} 30. Rc1 {[%emt 0:03:14]} Bg4 {[%emt 0:00:34]} 31. Kb3 {[%emt 0:01:30]} Ra7 {[%emt 0:02:20]} 32. Be4 {[%emt 0:01:30]} Bd7 {[%emt 0:01:41]} 33. Nd3 {[%emt 0:03:55]} Na6 {[%emt 0:03:28]} 34. Nc5 {[%emt 0:03:50]} Nxc5+ {[%emt 0:00:35]} 35. dxc5+ {[%emt 0:14:53]} Kc7 36. Bd3 {[%emt 0:00:00]} Be6+ {[%emt 0:01:03]} 37. Bc4 {[%emt 0:00:00]} Bg4 {[%emt 0:03:30]} 38. Ka4 {[%emt 0:00:00]} Bf3 {[%emt 0:00:22]} 39. Bb3 {[%emt 0:00:00]} Be2 {[%emt 0:00:36]} 40. Bc4 {[%emt 0:00:00]} Bf3 {[%emt 0:00:05]} 41. Kb3 {[%emt 0:00:00]} Kd7 {[%emt 0:00:23]} 42. Re1 {[%emt 0:00:00]} Ke7 {[%emt 0:00:55]} 43. Be2 {[%emt 0:00:00]} Bd5+ {[%emt 0:00:21]} 44. Bc4 {[%emt 0:00:08]} Bf3 {[%emt 0:00:21]} 45. Be2 {[%emt 0:00:06]} Bd5+ {[%emt 0:01:15]} 46. Bc4 {[%emt 0:00:03]} Bf3 {[%emt 0:00:02]} 47. Be2 {[%emt 0:00:30]} Bd5+ {[%emt 0:00:51]} 48. Bc4 {[%emt 0:00:09]} Bxc4+ {[%emt 0:00:23]} 49. Kxc4 {[%emt 0:00:05]} Rb7 {[%emt 0:00:04]} 50. Rb1 {[%emt 0:00:55]} Ke6 {[%emt 0:00:07]} 51. e4 {[%emt 0:00:55]} Ke5 {[%emt 0:00:07]} 52. f3 {[%emt 0:00:17]} Rd7 {[%emt 0:00:29]} 53. Ra1 {[%emt 0:01:00]} Rd4+ {[%emt 0:00:14]} 54. Kb3 {[%emt 0:00:04]} Rd3+ {[%emt 0:00:03]} 55. Kb2 {[%emt 0:00:26]} Rxf3 {[%emt 0:00:06]} 56. Rxa5 {[%emt 0:00:06]} Kd4 {[%emt 0:00:45]} 57. g4 {[%emt 0:01:05]} Kc4 {[%emt 0:00:06]} 58. g5 {[%emt 0:00:40]} Rf2+ {[%emt 0:00:14]} 59. Kc1 {[%emt 0:00:40]} hxg5 {[%emt 0:00:16]} 60. hxg5 {[%emt 0:00:04]} b3 {[%emt 0:01:07]} 61. Ra6 {[%emt 0:01:05]} b2+ {[%emt 0:01:27]} 62. Kb1 {[%emt 0:00:05]} Kb3 {[%emt 0:00:05]} 63. Rb6+ {[%emt 0:00:29]} Kc3 {[%emt 0:00:01]} 64. Ka2 {[%emt 0:00:13]} fxg5 {[%emt 0:00:35]} 65. e5 {[%emt 0:00:23]} g4 {[%emt 0:01:12]} 66. e6 {[%emt 0:00:52]} g3 {[%emt 0:00:05]} 67. Rb3+ {[%emt 0:00:05]} Kc2 {[%emt 0:02:36]} 68. e7 {[%emt 0:00:08]} Kc1 {[%emt 0:01:16]} 69. Ka3 {[%emt 0:01:21]} Re2 {[%emt 0:00:53]} 70. Rxb2 {[%emt 0:01:37]} Rxe7 {[%emt 0:00:02]} 71. Rg2 {[%emt 0:00:16]} Rg7 {[%emt 0:00:12]} 72. Kb4 {[%emt 0:00:17]} Kd1 {[%emt 0:00:09]} 73. Ka5 {[%emt 0:00:35]} Ke1 {[%emt 0:00:33]} 74. Kb6 {[%emt 0:00:15]} Rg6 {[%emt 0:00:15]} 75. Rxg3 {[%emt 0:00:21]} Rxg3 {[%emt 0:00:03]} 76. Kxc6 {[%emt 0:00:05]} Kd2 {[%emt 0:00:27]} 77. Kd6 {[%emt 0:00:41]} Rg6+ {[%emt 0:01:02]} 78. Kd7 {[%emt 0:00:06]} Rg7+ {[%emt 0:00:10]} 79. Kd6 {[%emt 0:00:10]} Ke3 {[%emt 0:01:49]} 80. c6 {[%emt 0:00:05]} Rg6+ {[%emt 0:00:42]} 81. Kd7 {[%emt 0:00:06]} Ke4 {[%emt 0:00:44]} 82. c7 {[%emt 0:00:09]} Rg7+ {[%emt 0:00:04]} 83. Kd8 {[%emt 0:00:14]} Rg8+ {[%emt 0:00:08]} 84. Kd7 {[%emt 0:00:04]} Kd5 {[%emt 0:00:16]} 85. c8=Q {[%emt 0:00:11]} Rxc8 {[%emt 0:00:27]} 86. Kxc8 {[%emt 0:08:24]} 1/2-1/2

[Event "XX Gran Hotel Bali-A 2023"]
[Site "Benidorm"]
[Date "2023.12.05"]
[Round "6.19"]
[White "Luque Saiz, Andres"]
[Black "Ishvi Aggarwal"]
[Result "1-0"]
[ECO "C54"]
[WhiteElo "2349"]
[BlackElo "1765"]
[Annotator "RC"]
[PlyCount "75"]
[EventDate "2023.12.02"]
[EventType "swiss"]
[EventCountry "ESP"]
[SourceTitle "playchess.com"]
[Source "ChessBase"]
[SourceQuality "1"]
[TimeControl "5400+30"]

1. e4 {[%emt 0:00:02]} e5 {[%emt 0:01:59]} 2. Nf3 {[%emt 0:00:08]} Nc6 {[%emt 0:00:03]} 3. Bc4 {[%emt 0:00:25]} Bc5 {[%emt 0:00:05]} 4. c3 {[%emt 0:00:13]} Nf6 {[%emt 0:00:03]} 5. d3 {[%emt 0:00:04]} d6 {[%emt 0:00:12]} 6. O-O {[%emt 0:00:26]} a6 {[%emt 0:00:02]} 7. Bb3 {[%emt 0:00:13]} Ba7 {[%emt 0:00:08]} 8. Nbd2 {[%emt 0:01:02]} h6 {[%emt 0:00:11]} 9. Nc4 {[%emt 0:01:38]} g5 {[%emt 0:01:34]} 10. Re1 {[%emt 0:02:50]} g4 {[%emt 0:00:23]} 11. Nfd2 {[%emt 0:00:39]} h5 {[%emt 0:00:20]} 12. Nf1 {[%emt 0:01:23]} h4 {[%emt 0:01:19]} 13. Be3 {[%emt 0:00:28]} h3 {[%emt 0:00:23]} 14. g3 {[%emt 0:00:36]} d5 {[%emt 0:01:28]} 15. Ncd2 {[%emt 0:10:11]} d4 {[%emt 0:00:17]} 16. Bg5 {[%emt 0:00:24]} Rh5 {[%emt 0:00:52]} 17. Bxf6 {[%emt 0:00:46]} Qxf6 {[%emt 0:00:02]} 18. c4 {[%emt 0:00:27]} Bd7 {[%emt 0:02:10]} 19. Ba4 {[%emt 0:01:43]} O-O-O {[%emt 0:00:44]} 20. a3 {[%emt 0:06:02]} Bc5 {[%emt 0:01:22]} 21. b4 {[%emt 0:02:29]} Bf8 {[%emt 0:00:10]} 22. b5 {[%emt 0:16:28]} axb5 {[%emt 0:13:18]} 23. Bxb5 {[%emt 0:02:03]} Qg6 {[%emt 0:10:30]} 24. Qa4 {[%emt 0:09:49]} Nb8 {[%emt 0:03:53]} 25. Reb1 {[%emt 0:16:20]} c6 {[%emt 0:34:05]} 26. Qa7 {[%emt 0:01:06]} cxb5 {[%emt 0:00:11]} 27. cxb5 {[%emt 0:00:06]} Bd6 {[%emt 0:04:47]} 28. Rc1+ {[%emt 0:02:21]} Bc7 {[%emt 0:00:03]} 29. Nc4 {[%emt 0:03:28]} Rf8 {[%emt 0:08:24]} 30. Nb6+ {[%emt 0:00:58]} Kd8 {[%emt 0:00:02]} 31. Rxc7 {[%emt 0:01:37]} Kxc7 {[%emt 0:00:21]} 32. Nd5+ {[%emt 0:00:15]} Kd6 {[%emt 0:01:55]} 33. Qb6+ {[%emt 0:00:13]} Nc6 {[%emt 0:00:43]} 34. bxc6 {[%emt 0:00:10]} bxc6 {[%emt 0:00:57]} 35. Qb4+ {[%emt 0:00:06]} c5 {[%emt 0:01:21]} 36. Qb6+ {[%emt 0:00:04]} Bc6 {[%emt 0:00:02]} 37. Qc7+ {[%emt 0:00:04]} Ke6 {[%emt 0:00:03]} 38. Qe7# {[%emt 0:00:04]} 1-0

[Event "XX Gran Hotel Bali-A 2023"]
[Site "Benidorm"]
[Date "2023.12.05"]
[Round "6.20"]
[White "Hristodorescu, Daniel"]
[Black "Cruz Lledo, Pablo"]
[Result "1/2-1/2"]
[ECO "B11"]
[WhiteElo "2111"]
[BlackElo "2368"]
[Annotator "RC"]
[PlyCount "153"]
[EventDate "2023.12.02"]
[EventType "swiss"]
[EventCountry "ESP"]
[SourceTitle "playchess.com"]
[Source "ChessBase"]
[SourceQuality "1"]
[TimeControl "5400+30"]

1. e4 {[%emt 0:00:09]} c6 {[%emt 0:03:06]} 2. Nc3 {[%emt 0:00:07]} d5 {[%emt 0:00:18]} 3. Nf3 {[%emt 0:00:09]} dxe4 {[%emt 0:00:03]} 4. Nxe4 {[%emt 0:00:08]} Nf6 {[%emt 0:00:03]} 5. Ng3 {[%emt 0:00:12]} h5 {[%emt 0:00:07]} 6. h3 {[%emt 0:00:11]} h4 {[%emt 0:00:04]} 7. Ne2 {[%emt 0:00:10]} Bf5 {[%emt 0:00:05]} 8. d4 {[%emt 0:00:57]} Be4 {[%emt 0:00:03]} 9. Neg1 {[%emt 0:02:16]} e6 {[%emt 0:06:01]} 10. Bd3 {[%emt 0:06:25]} Nbd7 {[%emt 0:03:20]} 11. Bxe4 {[%emt 0:04:39]} Nxe4 {[%emt 0:00:52]} 12. Qd3 {[%emt 0:00:32]} Ndf6 {[%emt 0:00:29]} 13. Ne2 {[%emt 0:00:37]} Qa5+ {[%emt 0:07:39]} 14. Nd2 {[%emt 0:08:26]} O-O-O {[%emt 0:04:32]} 15. O-O {[%emt 0:02:33]} Nd6 {[%emt 0:00:03]} 16. a3 {[%emt 0:03:37]} g5 {[%emt 0:01:55]} 17. Nb3 {[%emt 0:01:17]} Qd5 {[%emt 0:12:29]} 18. Nc3 {[%emt 0:00:48]} Qf5 {[%emt 0:00:04]} 19. Qxf5 {[%emt 0:00:12]} Nxf5 {[%emt 0:00:04]} 20. Bxg5 {[%emt 0:00:23]} Be7 {[%emt 0:00:16]} 21. Rad1 {[%emt 0:06:57]} Rhg8 {[%emt 0:00:05]} 22. Bxf6 {[%emt 0:08:59]} Bxf6 {[%emt 0:00:07]} 23. Ne2 {[%emt 0:00:04]} Rg7 {[%emt 0:02:34]} 24. Kh1 {[%emt 0:00:18]} Rdg8 {[%emt 0:00:33]} 25. Rg1 {[%emt 0:00:06]} Nd6 {[%emt 0:03:40]} 26. Nc5 {[%emt 0:03:14]} b6 {[%emt 0:03:48]} 27. Nd3 {[%emt 0:00:08]} Ne4 {[%emt 0:00:05]} 28. c3 {[%emt 0:02:45]} Be7 {[%emt 0:05:46]} 29. f3 {[%emt 0:01:31]} Nd6 {[%emt 0:00:56]} 30. Ne5 {[%emt 0:03:29]} Kc7 {[%emt 0:02:18]} 31. a4 {[%emt 0:04:44]} Bg5 {[%emt 0:02:40]} 32. f4 {[%emt 0:00:48]} Be7 {[%emt 0:00:45]} 33. Rd3 {[%emt 0:03:40]} Nf5 {[%emt 0:05:52]} 34. b4 {[%emt 0:01:49]} a6 {[%emt 0:01:27]} 35. Rf3 {[%emt 0:03:59]} Bd6 {[%emt 0:03:25]} 36. Ng4 {[%emt 0:01:18]} a5 {[%emt 0:05:33]} 37. bxa5 {[%emt 0:05:47]} bxa5 {[%emt 0:00:02]} 38. Rb1 {[%emt 0:00:14]} Be7 {[%emt 0:00:34]} 39. Nc1 {[%emt 0:02:00]} Ng3+ {[%emt 0:01:16]} 40. Kh2 {[%emt 0:01:17]} f5 {[%emt 0:04:50]} 41. Ne3 {[%emt 0:02:40]} Ne4 {[%emt 0:00:22]} 42. Rb2 {[%emt 0:03:57]} Rg3 {[%emt 0:10:52]} 43. Ne2 {[%emt 0:02:38]} Rxf3 {[%emt 0:00:05]} 44. gxf3 {[%emt 0:00:03]} Nf6 {[%emt 0:02:08]} 45. Nc4 {[%emt 0:00:49]} Ra8 {[%emt 0:00:03]} 46. Ne5 {[%emt 0:02:35]} Nd5 {[%emt 0:00:27]} 47. c4 {[%emt 0:02:16]} Nb6 {[%emt 0:01:46]} 48. c5 {[%emt 0:01:37]} Nd5 {[%emt 0:00:40]} 49. Nc1 {[%emt 0:01:16]} Bf6 {[%emt 0:02:48]} 50. Ncd3 {[%emt 0:00:27]} Rg8 {[%emt 0:00:43]} 51. Re2 {[%emt 0:01:26]} Rg3 {[%emt 0:00:48]} 52. Rg2 {[%emt 0:00:51]} Bxe5 {[%emt 0:01:41]} 53. Nxe5 {[%emt 0:02:08]} Rxg2+ {[%emt 0:00:09]} 54. Kxg2 {[%emt 0:00:06]} Nxf4+ {[%emt 0:00:05]} 55. Kf1 {[%emt 0:01:24]} Nxh3 {[%emt 0:01:36]} 56. Ng6 {[%emt 0:00:06]} Ng5 {[%emt 0:04:27]} 57. Nxh4 {[%emt 0:00:07]} Kd7 {[%emt 0:00:04]} 58. Ke2 {[%emt 0:00:11]} e5 {[%emt 0:01:28]} 59. dxe5 {[%emt 0:03:34]} Ne6 {[%emt 0:01:12]} 60. Nxf5 {[%emt 0:00:44]} Nxc5 {[%emt 0:00:01]} 61. Nd4 {[%emt 0:00:43]} Nxa4 {[%emt 0:00:24]} 62. Nb3 {[%emt 0:00:42]} Ke6 {[%emt 0:00:47]} 63. f4 {[%emt 0:00:17]} Nc3+ {[%emt 0:00:47]} 64. Kd3 {[%emt 0:00:06]} Nd5 {[%emt 0:00:33]} 65. Nd4+ {[%emt 0:00:15]} Kd7 {[%emt 0:00:03]} 66. f5 {[%emt 0:00:08]} a4 {[%emt 0:00:39]} 67. Kc4 {[%emt 0:00:45]} Ne3+ {[%emt 0:00:54]} 68. Kd3 {[%emt 0:00:19]} Ng4 {[%emt 0:00:28]} 69. Nf3 {[%emt 0:02:19]} Nh6 {[%emt 0:00:22]} 70. Nd4 {[%emt 0:00:45]} c5 {[%emt 0:00:40]} 71. e6+ {[%emt 0:01:14]} Kd6 {[%emt 0:00:31]} 72. Nb5+ {[%emt 0:00:11]} Ke7 {[%emt 0:00:21]} 73. Ke4 {[%emt 0:00:22]} c4 {[%emt 0:00:26]} 74. Kf4 {[%emt 0:01:19]} Kf6 {[%emt 0:00:32]} 75. Nc3 {[%emt 0:00:55]} Nxf5 {[%emt 0:00:42]} 76. Nxa4 {[%emt 0:00:09]} Kxe6 {[%emt 0:00:29]} 77. Ke4 {[%emt 0:00:15]} 1/2-1/2

[Event "XX Gran Hotel Bali-A 2023"]
[Site "Benidorm"]
[Date "2023.12.06"]
[Round "7.1"]
[White "Grigoryan, Karen H."]
[Black "Moskalenko, Viktor"]
[Result "1-0"]
[ECO "D31"]
[WhiteElo "2646"]
[BlackElo "2427"]
[Annotator "TA"]
[PlyCount "161"]
[EventDate "2023.12.02"]
[EventType "swiss"]
[EventCountry "ESP"]
[SourceTitle "playchess.com"]
[Source "ChessBase"]
[SourceQuality "1"]
[TimeControl "5400+30"]

{[%evp 9,161,30,40,28,44,7,22,0,29,-7,-21,-21,-10,-20,-25,-27,-27,-23,-12,-31,-29,-26,-25,-31,-24,-39,-26,-74,-67,-95,-29,-59,-39,-47,-60,-54,-43,-79,-64,-72,-60,-71,-62,-100,-101,-152,-85,-87,-4,-87,-31,-33,-32,-47,-35,-45,-17,-15,-4,-4,-3,-9,-4,-4,0,0,0,0,0,0,0,0,0,0,0,0,5,3,4,0,0,0,6,13,11,0,0,0,0,0,0,0,0,0,0,0,0,0,0,0,0,0,0,0,0,0,0,0,0,0,0,0,0,0,0,0,0,0,0,0,0,0,0,0,0,0,0,0,0,0,0,0,22,22,22,22,229,224,214,196,141,41,77,77,741,70,78,79,8316,4500,29983,29984,29984,29985]} 1. d4 {[%emt 0:00:02]} d5 {[%emt 0:01:56]} 2. c4 {[%emt 0:00:09]} e6 {[%emt 0:00:27]} 3. Nc3 {[%emt 0:00:54]} a6 {[%emt 1:29:37]} 4. cxd5 {[%emt 0:01:02]} exd5 {[%emt 0:00:00]} 5. Qb3 {[%emt 0:01:20]} Nc6 {[%emt 0:00:00]} 6. Nf3 {[%emt 0:01:38] D31: Queen's Gambit Declined: Semi-Slav without ...Nf6 (+ Marshall Gambit and Noteboom) and Exchange Variation lines without ...Nf6.} Be6 {[%emt 0:00:00] [#]} 7. g3 $146 {[%emt 0:03:17]} (7. Qxb7 $2 Na5 $19) ({Predecessor:} 7. Bf4 Bb4 8. e3 Nge7 9. Bd3 O-O 10. O-O Bd6 11. Bxd6 Qxd6 12. Rac1 h6 13. Na4 {0-1 Kryakvin,D (2554)-Grachev,B (2628) RUS-ch rapid 2016 (9)}) 7... Nf6 {[%emt 0:00:00]} 8. Bg2 {[%emt 0:00:16] The position is equal.} (8. Qxb7 $2 Na5 $19) 8... h6 {[%emt 0:00:00]} 9. O-O {[%emt 0:01:01]} (9. Qxb7 $2 Na5 $19) 9... Bd6 {[%emt 0:00:00]} 10. Rd1 {[%emt 0:01:34]} (10. Qxb7 $2 Na5 $19) 10... O-O $1 {[%emt 0:00:00]} 11. Bf4 {[%emt 0:01:50]} (11. Qxb7 $2 {perishes.} Na5 $19) 11... Na5 {[%emt 0:00:00]} 12. Qc2 {[%emt 0:00:44]} Bxf4 {[%emt 0:00:00]} 13. gxf4 {[%emt 0:00:06]} Nc4 {[%emt 0:00:00]} 14. Ne5 {[%emt 0:19:53]} Nd6 {[%emt 0:00:00]} 15. e3 {[%emt 0:08:17]} c6 {[%emt 0:00:00]} 16. f3 {[%emt 0:07:45]} Nh5 {[%emt 0:00:00]} 17. Qf2 {[%emt 0:00:55]} Re8 {[%emt 0:00:00]} 18. Ne2 {[%emt 0:03:28]} (18. Re1 $11 {deserves consideration.}) 18... Bf5 {[%emt 0:00:00]} 19. Re1 {[%emt 0:04:21]} Bh7 {[%emt 0:00:00]} (19... f6 $17 20. Ng4 a5) 20. Rad1 {[%emt 0:02:52]} Qe7 {[%emt 0:00:08]} 21. Ng3 {[%emt 0:00:38]} Nxg3 {[%emt 0:00:47]} (21... Qh4 {with more complications.} 22. Ne2 Qxf2+ 23. Kxf2 f6) 22. hxg3 {[%emt 0:00:09]} f6 {[%emt 0:00:12]} 23. Ng4 {[%emt 0:01:18]} h5 {[%emt 0:02:03]} 24. Nh2 {[%emt 0:00:09]} Qf7 {[%emt 0:01:01]} 25. g4 {[%emt 0:08:34]} hxg4 {[%emt 0:00:36]} 26. Nxg4 {[%emt 0:00:08]} Bf5 {[%emt 0:00:25]} 27. Nh2 {[%emt 0:00:12]} ({White should play} 27. Bf1) 27... Qg6 {[%emt 0:00:59]} ({Better is} 27... Re7 28. Nf1 Rae8) 28. Nf1 $17 {[%emt 0:02:55] White is weak on the light squares} Bh3 {[%emt 0:00:58]} (28... Re6 $17 {next ...Rae8 is good for Black.} 29. Qg3 Qh7) 29. Rd2 {[%emt 0:07:40]} (29. Qg3 $1 $11 {remains equal.} Qxg3 30. Nxg3 Bxg2 31. Kxg2) 29... Bxg2 {[%emt 0:01:24]} ({Reject} 29... Nc4 $6 30. Rde2 $15) ({Black should try} 29... Nf5 $17) 30. Qxg2 $15 {[%emt 0:00:08]} Qxg2+ {[%emt 0:00:02]} 31. Kxg2 {[%emt 0:00:13]} Kf7 {[%emt 0:02:06]} 32. Ng3 {[%emt 0:00:09]} f5 {[%emt 0:00:34]} 33. b3 {[%emt 0:01:21]} Re6 {[%emt 0:01:36]} 34. Rde2 {[%emt 0:02:28]} a5 {[%emt 0:00:44]} 35. a4 {[%emt 0:00:16]} Rh8 {[%emt 0:00:54]} 36. Rh1 {[%emt 0:00:10]} Reh6 {[%emt 0:00:54]} 37. Rxh6 {[%emt 0:00:14]} Rxh6 $11 {[%emt 0:00:05][%mdl 4096] Endgame KRN-KRN} 38. Nh1 {[%emt 0:00:28]} Kf6 {[%emt 0:00:28]} 39. Nf2 {[%emt 0:00:09]} Rg6+ {[%emt 0:00:27]} 40. Kf1 {[%emt 0:00:25]} Rh6 {[%emt 0:00:01]} 41. Rc2 {[%emt 0:00:22]} Rh8 {[%emt 0:00:24]} 42. Rc5 {[%emt 0:00:10]} Ra8 {[%emt 0:00:02]} 43. Nd3 {[%emt 0:00:28]} Nf7 {[%emt 0:00:26]} 44. Ne5 {[%emt 0:00:16]} Ke6 {[%emt 0:00:36]} 45. Rc2 {[%emt 0:00:42]} Nxe5 {[%emt 0:00:10]} 46. fxe5 {[%emt 0:00:07] KR-KR} Rh8 {[%emt 0:00:23]} 47. Kg2 {[%emt 0:04:45]} g5 {[%emt 0:00:47]} 48. Rc5 {[%emt 0:00:27]} Ra8 {[%emt 0:00:32]} 49. Kf2 {[%emt 0:00:16]} Kd7 {[%emt 0:00:38]} 50. Rc1 {[%emt 0:01:55]} Rh8 {[%emt 0:00:08] Dodges Rh1} 51. Rg1 {[%emt 0:01:01]} Rh5 {[%emt 0:01:19]} 52. Kg3 {[%emt 0:00:40]} Rh8 {[%emt 0:00:43]} 53. Rb1 {[%emt 0:01:05]} Kc7 {[%emt 0:00:35]} 54. Re1 {[%emt 0:08:21]} Kd7 {[%emt 0:00:29]} 55. Rg1 {[%emt 0:00:14]} Rh4 {[%emt 0:00:52]} 56. Kf2 {[%emt 0:00:48]} Rh2+ {[%emt 0:00:51]} 57. Ke1 {[%emt 0:00:20]} Rh5 {[%emt 0:00:14]} 58. Kd2 {[%emt 0:00:11]} b6 {[%emt 0:00:32]} 59. Kd3 {[%emt 0:00:52]} c5 {[%emt 0:00:52]} 60. Rc1 {[%emt 0:00:31]} Kc6 {[%emt 0:00:32]} 61. Rg1 {[%emt 0:01:10]} Kd7 {[%emt 0:00:14]} 62. Rg2 {[%emt 0:01:02]} Kc6 {[%emt 0:00:56]} 63. Rg1 {[%emt 0:00:58]} Kd7 {[%emt 0:00:07]} 64. Rc1 {[%emt 0:00:22]} Kc6 {[%emt 0:00:15]} 65. e6 {[%emt 0:00:08]} Rh6 {[%emt 0:00:36]} 66. e7 {[%emt 0:00:37]} Re6 {[%emt 0:00:52]} 67. Rg1 {[%emt 0:00:10]} g4 {[%emt 0:01:31]} (67... cxd4 {simplifies} 68. Rxg5 Rxe3+ 69. Kxd4 Rxe7 70. Rxf5 Re6) 68. fxg4 {[%emt 0:00:20]} fxg4 {[%emt 0:00:00]} (68... Rxe7 $2 69. gxf5 Re4 70. dxc5 bxc5 71. f6 $18) 69. Rxg4 {[%emt 0:00:09][%cal Og4g6] [#] Threatening mate with Rg6!} Kd6 {[%emt 0:00:10]} (69... Rxe7 {simplifies} 70. Rg6+ Kc7 71. dxc5 bxc5 72. Ra6 Re4) 70. e4 {[%emt 0:04:56] Strongly threatening exd5.} cxd4 {[%emt 0:00:37]} 71. exd5 {[%emt 0:00:39]} Rxe7 {[%emt 0:00:34]} 72. Kxd4 {[%emt 0:00:06]} Re1 $2 {[%emt 0:00:29]} (72... Kc7 $11 {and Black has nothing to worry.}) 73. Rg6+ $18 {[%emt 0:00:10]} Kc7 {[%emt 0:00:05]} 74. Rc6+ {[%emt 0:00:05]} Kb7 {[%emt 0:00:05] [#]} 75. Rc3 {[%emt 0:00:09]} ({White must play} 75. Re6 $1 $16 {[%cal Re6e1]} Rh1 76. Re7+ Kc8 77. Ke5) 75... Rd1+ {[%emt 0:00:43]} 76. Ke5 {[%emt 0:00:07] And now Kd6 would win.} b5 $2 {[%emt 0:00:01][%mdl 8192]} 77. Rc5 $2 {[%emt 0:01:29]} ({Only move:} 77. axb5 $18 Re1+ 78. Kd4) 77... bxa4 $1 $14 {[%emt 0:00:12]} 78. bxa4 {[%emt 0:00:06] Threatens to win with Kd6.} ({Much worse is} 78. Rxa5 axb3 79. Rb5+ Kc7 $11) 78... Re1+ $2 {[%emt 0:00:22][%mdl 8192]} (78... Kb6 $16 79. Rc6+ Kb7) 79. Kd6 $18 {[%emt 0:00:31][%cal Od6d7] Intending Kd7! and mate.} Kb6 {[%emt 0:00:13]} 80. Rb5+ {[%emt 0:00:40]} Ka6 {[%emt 0:00:01]} 81. Kc6 {[%emt 0:00:18] Weighted Error Value: White=0.11 (very precise) /Black=0.09 (flawless)} 1-0

[Event "XX Gran Hotel Bali-A 2023"]
[Site "Benidorm"]
[Date "2023.12.06"]
[Round "7.2"]
[White "Korneev Leskova, Svyatoslav"]
[Black "Zanan, Evgeny"]
[Result "0-1"]
[ECO "A20"]
[WhiteElo "2252"]
[BlackElo "2486"]
[Annotator "RC"]
[PlyCount "46"]
[EventDate "2023.12.02"]
[EventType "swiss"]
[EventCountry "ESP"]
[SourceTitle "playchess.com"]
[Source "ChessBase"]
[SourceQuality "1"]
[TimeControl "5400+30"]

1. c4 {[%emt 0:00:01]} e5 {[%emt 0:05:07]} 2. g3 {[%emt 0:00:16]} Nf6 {[%emt 0:01:08]} 3. Bg2 {[%emt 0:00:25]} c6 {[%emt 0:00:57]} 4. d4 {[%emt 0:00:13]} exd4 {[%emt 0:00:09]} 5. Qxd4 {[%emt 0:00:06]} Na6 {[%emt 0:00:03]} 6. Nf3 {[%emt 0:01:08]} Bc5 {[%emt 0:11:50]} 7. Qe5+ {[%emt 0:00:54]} Be7 {[%emt 0:00:05]} 8. O-O {[%emt 0:02:50]} O-O {[%emt 0:00:39]} 9. a3 {[%emt 0:08:03]} Nc5 {[%emt 0:11:40]} 10. Bg5 {[%emt 0:18:59]} d6 {[%emt 0:08:15]} 11. Qf4 {[%emt 0:07:03]} h6 {[%emt 0:02:07]} 12. Bxf6 {[%emt 0:01:31]} Bxf6 {[%emt 0:03:23]} 13. Ra2 {[%emt 0:00:11]} a5 {[%emt 0:08:06]} 14. Rd1 {[%emt 0:03:13]} Re8 {[%emt 0:06:24]} 15. Nc3 {[%emt 0:13:45]} Qe7 {[%emt 0:04:03]} 16. Rxd6 {[%emt 0:11:18]} Be6 {[%emt 0:07:23]} 17. g4 {[%emt 0:17:37]} g5 {[%emt 0:02:32]} 18. Qg3 {[%emt 0:00:13]} Bxc3 {[%emt 0:01:44]} 19. Rxe6 {[%emt 0:00:15]} Qxe6 {[%emt 0:00:40]} 20. bxc3 {[%emt 0:00:05]} Qxc4 {[%emt 0:06:23]} 21. Rd2 {[%emt 0:00:40]} Ne4 {[%emt 0:00:42]} 22. Qc7 {[%emt 0:01:42]} Nxd2 {[%emt 0:00:24]} 23. Nxd2 {[%emt 0:00:05]} Qxe2 {[%emt 0:00:19]} 0-1